Workbook

Sheet Presentación
B12: Autor: | C12: William Sivipaucar Romani

Sheet Parámetros
B2: NUEVOS PARAMETROS - RENTA DE CUARTA CATEGORÍA 2015
C6: Valor de la UIT | D6: 3850
C8: RENTA IMPONIBLE DE TRABAJO | H8: TASA
C9: Hasta | D9: 5 | E9: UIT | F9: ó | G9: =+D9*$D$6 -> 19250 | H9: 0.08
C10: Por el Exceso de | D10: 5 | E10: UIT | F10: ó | G10: 19250 | H10: 0.14
C11: y hasta | D11: 20 | E11: UIT | F11: ó | G11: 77000
C12: Por el Exceso de | D12: 20 | E12: UIT | F12: ó | G12: 77000 | H12: 0.17
C13: y hasta | D13: 35 | E13: UIT | F13: ó | G13: 134750
C14: Por el Exceso de | D14: 35 | E14: UIT | F14: ó | G14: 134750 | H14: 0.2
C15: y hasta | D15: 45 | E15: UIT | F15: ó | G15: 173250
C16: Por el Exceso de | D16: 45 | E16: UIT | F16: ó | G16: 173250 | H16: 0.3

Sheet Nuevo cálculo
B1: CALCULO DEL IMPUESTO A LA RENTA DE CUARTA CATEGORIA 2015 (NUEVO)
C2: Descripción | F2: S/.
C3: Renta Bruta obtenida por el ejercicio individual (Profesión, arte, ciencia u oficio) | E3: ❶ | F3: 299000
C4: ="Deducción (20% del Renta Bruta obtenida - Máximo S/ "&TEXT(Parámetros!D6*24,"#,000.00") -> Deducción (20% del Renta Bruta obtenida - Máximo S/ 92,400.00 | F4: =IF(20%*F3>Parámetros!D6*24,Parámetros!D6*24,20%*F3) -> 59800
C5: Renta Neta obtenida por el ejercicio individual (Profesión, arte, ciencia u oficio) | F5: =+F3-F4 -> 239200
C6: Otras Rentas de Cuarta Categoría | E6: ❷
C7: Total Rentas de Cuarta Categoría | F7: =+F5+F6 -> 239200
C8: Deducción de 7 UIT (Hasta el límite del total renta de cuarta categoría) | F8: =IF(Parámetros!D6*7>'Nuevo cálculo'!F7,'Nuevo cálculo'!F7,Parámetros!D6*7) -> 26950
C9: Total Renta Neta de Cuarta Categoría | F9: =+F7-F8 -> 212250
C10: Deducción por Impuesto a las Transacciones Financieras - ITF | E10: ❸ | F10: 29
C11: Deducción por Donaciones | E11: ❹ | F11: 750
C12: Total Renta Imponible de Trabajo | E12: ► | F12: =+F9-F10-F11 -> 211471
C14: Renta imponible de trabajo | D14: Tasa | E14: Tramos
C15: =+Parámetros!C9&" " &Parámetros!D9&" "&Parámetros!E9&" "&Parámetros!F9&" S/. "&TEXT(Parámetros!G9,"#,000.00") -> Hasta 5 UIT ó S/. 19,250.00 | D15: =+Parámetros!H9 -> 0.08 | E15: =IF(F12>Parámetros!G9,Parámetros!G9,'Nuevo cálculo'!F12) -> 19250 | F15: =+D15*E15 -> 1540
C16: =+Parámetros!C10&" "&Parámetros!D10&" "&Parámetros!E10&" "&Parámetros!F10&" S/. "&TEXT(Parámetros!G10,"#,000.00")&" " &Parámetros!C11&" "&Parámetros!D11&" "&Parámetros!E11&" "&Parámetros!F11&" S/. "&TEXT(Parámetros!G11,"#,000.00") -> Por el Exceso de 5 UIT ó S/. 19,250.00 y hasta 20 UIT ó S/. 77,000.00 | D16: =+Parámetros!H10 -> 0.14 | E16: =IF(AND(($F$12)>Parámetros!G10,($F$12)<=Parámetros!G11)=TRUE,$F$12-SUM($E$15:E15),IF($F$12>Parámetros!G11,Parámetros!G11-SUM($E$15:E15),0)) -> 57750 | F16: =+D16*E16 -> 8085
C17: =+Parámetros!C12&" "&Parámetros!D12&" "&Parámetros!E12&" "&Parámetros!F12&" S/. "&TEXT(Parámetros!G12,"#,000.00")&" " &Parámetros!C13&" "&Parámetros!D13&" "&Parámetros!E13&" "&Parámetros!F13&" S/. "&TEXT(Parámetros!G13,"#,000.00") -> Por el Exceso de 20 UIT ó S/. 77,000.00 y hasta 35 UIT ó S/. 134,750.00 | D17: =+Parámetros!H12 -> 0.17 | E17: =IF(AND(($F$12)>Parámetros!G12,($F$12)<=Parámetros!G13)=TRUE,$F$12-SUM($E$15:E16),IF($F$12>Parámetros!G13,Parámetros!G13-SUM($E$15:E16),0)) -> 57750 | F17: =+D17*E17 -> 9817.5
C18: =+Parámetros!C14&" "&Parámetros!D14&" "&Parámetros!E14&" "&Parámetros!F14&" S/. "&TEXT(Parámetros!G14,"#,000.00")&" " &Parámetros!C15&" "&Parámetros!D15&" "&Parámetros!E15&" "&Parámetros!F15&" S/. "&TEXT(Parámetros!G15,"#,000.00") -> Por el Exceso de 35 UIT ó S/. 134,750.00 y hasta 45 UIT ó S/. 173,250.00 | D18: =+Parámetros!H14 -> 0.2 | E18: =IF(AND(($F$12)>Parámetros!G14,($F$12)<=Parámetros!G15)=TRUE,$F$12-SUM($E$15:E17),IF($F$12>Parámetros!G15,Parámetros!G15-SUM($E$15:E17),0)) -> 38500 | F18: =+D18*E18 -> 7700
C19: =+Parámetros!C16&" "&Parámetros!D16&" "&Parámetros!E16&" "&Parámetros!F16&" S/. "&TEXT(Parámetros!G16,"#,000.00") -> Por el Exceso de 45 UIT ó S/. 173,250.00 | D19: =+Parámetros!H16 -> 0.3 | E19: =IF($F$12>Parámetros!G16,'Nuevo cálculo'!$F$12-SUM('Nuevo cálculo'!E15:E18),0) -> 38221 | F19: =+D19*E19 -> 11466.3
C21: Impuesto a la renta | F21: =SUM(F15:F20) -> 38608.8
C23: Pagos a cuenta y/o saldo a favor de periodos anteriores | E23: ❺ | F23: -25600
C25: =+IF(F25>=0,"Impuesto a regularizar","Saldo a favor") -> Impuesto a regularizar | E25: ► | F25: =+F21+F23 -> 13008.8
